[Event "*** Titled Tuesday Blitz"]
[Site "Chess.com"]
[Date "2021.03.30"]
[Round "3"]
[White "frenchpin"]
[Black "Evgeny81"]
[Result "1/2-1/2"]
[WhiteElo "2527"]
[BlackElo "2769"]
[TimeControl "180+1"]
[EndTime "10:30:13 PDT"]
[Termination "Game drawn - insufficient material"]

1. e4 {[%clk 0:03:00.9]} 1... c5 {[%clk 0:02:58.8]} 2. Nf3 {[%clk 0:03:00.8]}
2... e6 {[%clk 0:02:58.3]} 3. c3 {[%clk 0:03:00.3]} 3... Nf6 {[%clk 0:02:55.4]}
4. e5 {[%clk 0:03:00.3]} 4... Nd5 {[%clk 0:02:55.8]} 5. Bc4 {[%clk 0:03:00.7]}
5... d6 {[%clk 0:02:54.3]} 6. d4 {[%clk 0:02:59.8]} 6... Nc6 {[%clk 0:02:52.1]}
7. O-O {[%clk 0:02:59.4]} 7... Be7 {[%clk 0:02:51.6]} 8. Qe2 {[%clk 0:02:58.7]}
8... O-O {[%clk 0:02:51.1]} 9. exd6 {[%clk 0:02:56.5]} 9... Bxd6 {[%clk
0:02:50.1]} 10. dxc5 {[%clk 0:02:56.9]} 10... Bxc5 {[%clk 0:02:50.1]} 11. Nbd2
{[%clk 0:02:56.3]} 11... Be7 {[%clk 0:02:43.4]} 12. Ne4 {[%clk 0:02:50.5]} 12...
b6 {[%clk 0:02:42.3]} 13. Rd1 {[%clk 0:02:46.5]} 13... Bb7 {[%clk 0:02:39.8]}
14. Bd3 {[%clk 0:02:44.5]} 14... Qc7 {[%clk 0:02:38.9]} 15. Bg5 {[%clk
0:02:34.2]} 15... h6 {[%clk 0:02:34.9]} 16. Bxe7 {[%clk 0:02:32.6]} 16... Ncxe7
{[%clk 0:02:33.8]} 17. g3 {[%clk 0:02:26.8]} 17... Rad8 {[%clk 0:02:27.7]} 18.
Bc2 {[%clk 0:02:25.7]} 18... Rfe8 {[%clk 0:02:18.3]} 19. a4 {[%clk 0:02:17.8]}
19... Ng6 {[%clk 0:02:04.9]} 20. Nd4 {[%clk 0:02:10.3]} 20... Ne5 {[%clk
0:02:00.6]} 21. Nb5 {[%clk 0:02:08.4]} 21... Qb8 {[%clk 0:02:00.2]} 22. f4
{[%clk 0:02:06.8]} 22... Ng6 {[%clk 0:01:50.7]} 23. Nf2 {[%clk 0:01:53.8]} 23...
f5 {[%clk 0:01:46.1]} 24. Nd3 {[%clk 0:01:47.6]} 24... Ba8 {[%clk 0:01:36.3]}
25. Bb3 {[%clk 0:01:30.8]} 25... Qb7 {[%clk 0:01:26.7]} 26. Qg2 {[%clk
0:01:28.6]} 26... Qe7 {[%clk 0:01:23.1]} 27. Qe2 {[%clk 0:01:23.2]} 27... Kh7
{[%clk 0:01:12.9]} 28. Nd4 {[%clk 0:01:20.9]} 28... Qf6 {[%clk 0:01:09.1]} 29.
Re1 {[%clk 0:01:15.5]} 29... Rd6 {[%clk 0:00:50.2]} 30. Ne5 {[%clk 0:01:15.3]}
30... Ngxf4 {[%clk 0:00:46.9]} 31. gxf4 {[%clk 0:01:08.9]} 31... Nxf4 {[%clk
0:00:47.8]} 32. Qe3 {[%clk 0:01:08.3]} 32... Qg5+ {[%clk 0:00:42.7]} 33. Qg3
{[%clk 0:01:07.6]} 33... Qxg3+ {[%clk 0:00:15.2]} 34. hxg3 {[%clk 0:01:08.5]}
34... Nh5 {[%clk 0:00:15.1]} 35. Kh2 {[%clk 0:01:04.5]} 35... Nf6 {[%clk
0:00:15.2]} 36. Re2 {[%clk 0:00:54.3]} 36... Be4 {[%clk 0:00:14.8]} 37. a5
{[%clk 0:00:50.5]} 37... bxa5 {[%clk 0:00:12.8]} 38. Rxa5 {[%clk 0:00:49.9]}
38... Rb8 {[%clk 0:00:13]} 39. Bxe6 {[%clk 0:00:43.1]} 39... Re8 {[%clk
0:00:07]} 40. Bxf5+ {[%clk 0:00:32]} 40... Bxf5 {[%clk 0:00:03.6]} 41. Nxf5
{[%clk 0:00:32.9]} 41... Rde6 {[%clk 0:00:04.2]} 42. Kg2 {[%clk 0:00:20.1]}
42... Ng4 {[%clk 0:00:04.1]} 43. Nxg4 {[%clk 0:00:20.2]} 43... Rxe2+ {[%clk
0:00:04]} 44. Kf3 {[%clk 0:00:20.5]} 44... Rxb2 {[%clk 0:00:04.4]} 45. Rxa7
{[%clk 0:00:20.1]} 45... Rf8 {[%clk 0:00:04.8]} 46. Rxg7+ {[%clk 0:00:19]} 46...
Kh8 {[%clk 0:00:05.1]} 47. Nxh6 {[%clk 0:00:19.2]} 47... Rb6 {[%clk 0:00:03.1]}
48. Kg4 {[%clk 0:00:17.5]} 48... Rxh6 {[%clk 0:00:01.6]} 49. Nxh6 {[%clk
0:00:16.8]} 49... Kxg7 {[%clk 0:00:01.6]} 50. Nf5+ {[%clk 0:00:17.2]} 50... Kf7
{[%clk 0:00:02.5]} 51. Nd6+ {[%clk 0:00:17]} 51... Ke6 {[%clk 0:00:01.6]} 52.
Ne4 {[%clk 0:00:17.9]} 52... Rg8+ {[%clk 0:00:02.2]} 53. Ng5+ {[%clk 0:00:18.2]}
53... Ke5 {[%clk 0:00:02.3]} 54. Kh4 {[%clk 0:00:14.3]} 54... Kf5 {[%clk
0:00:02.4]} 55. Nf7 {[%clk 0:00:12.2]} 55... Rg7 {[%clk 0:00:02.4]} 56. Nd6+
{[%clk 0:00:10.2]} 56... Kg6 {[%clk 0:00:01.4]} 57. Kg4 {[%clk 0:00:08.8]} 57...
Kf6+ {[%clk 0:00:01.9]} 58. Kf4 {[%clk 0:00:05.8]} 58... Ke6 {[%clk 0:00:02.5]}
59. Ne4 {[%clk 0:00:05.4]} 59... Rf7+ {[%clk 0:00:03.1]} 60. Ke3 {[%clk
0:00:05]} 60... Ra7 {[%clk 0:00:04]} 61. c4 {[%clk 0:00:04.8]} 61... Ke5 {[%clk
0:00:04.5]} 62. Nf2 {[%clk 0:00:03.9]} 62... Ra3+ {[%clk 0:00:05]} 63. Nd3+
{[%clk 0:00:04.3]} 63... Ke6 {[%clk 0:00:04.8]} 64. Kd4 {[%clk 0:00:05.2]} 64...
Ra4 {[%clk 0:00:04.7]} 65. Nf4+ {[%clk 0:00:05.2]} 65... Kd6 {[%clk 0:00:04.4]}
66. Nd3 {[%clk 0:00:05]} 66... Kc6 {[%clk 0:00:04.4]} 67. g4 {[%clk 0:00:04.7]}
67... Ra8 {[%clk 0:00:04.6]} 68. g5 {[%clk 0:00:04.6]} 68... Rd8+ {[%clk
0:00:05.1]} 69. Ke4 {[%clk 0:00:04.7]} 69... Rg8 {[%clk 0:00:05.1]} 70. g6
{[%clk 0:00:04.8]} 70... Re8+ {[%clk 0:00:04.2]} 71. Kd4 {[%clk 0:00:03.9]}
71... Rg8 {[%clk 0:00:03.7]} 72. Nf4 {[%clk 0:00:03.2]} 72... Kd6 {[%clk
0:00:03.9]} 73. Ke4 {[%clk 0:00:03.4]} 73... Ke7 {[%clk 0:00:03.5]} 74. Kf5
{[%clk 0:00:03.6]} 74... Rc8 {[%clk 0:00:03.5]} 75. Kg5 {[%clk 0:00:02]} 75...
Rxc4 {[%clk 0:00:02.9]} 76. Kh6 {[%clk 0:00:02.4]} 76... Rc6 {[%clk 0:00:02.4]}
77. Nh5 {[%clk 0:00:02]} 77... Rxg6+ {[%clk 0:00:02.5]} 78. Kxg6 {[%clk
0:00:02.1]} 1/2-1/2

[Event "*** Titled Tuesday Blitz"]
[Site "Chess.com"]
[Date "2021.03.30"]
[Round "3"]
[White "Bacyanide"]
[Black "Korchmar_Vasiliy"]
[Result "0-1"]
[WhiteElo "2414"]
[BlackElo "2640"]
[TimeControl "180+1"]
[EndTime "10:30:13 PDT"]
[Termination "Korchmar_Vasiliy won by resignation"]

1. d4 {[%clk 0:03:00.9]} 1... Nf6 {[%clk 0:02:59.1]} 2. Nf3 {[%clk 0:03:00.8]}
2... d5 {[%clk 0:02:59.1]} 3. Bf4 {[%clk 0:03:00.6]} 3... c5 {[%clk 0:02:59.2]}
4. e3 {[%clk 0:03:00.6]} 4... Nc6 {[%clk 0:02:59.8]} 5. Nbd2 {[%clk 0:03:00.8]}
5... cxd4 {[%clk 0:02:59.7]} 6. exd4 {[%clk 0:03:00.5]} 6... Qb6 {[%clk
0:03:00.2]} 7. Nb3 {[%clk 0:02:59.2]} 7... Bf5 {[%clk 0:03:00.6]} 8. Bd3 {[%clk
0:02:26.5]} 8... Bxd3 {[%clk 0:03:00.8]} 9. Qxd3 {[%clk 0:02:26.6]} 9... e6
{[%clk 0:03:01.7]} 10. O-O {[%clk 0:02:26.4]} 10... Be7 {[%clk 0:03:02.1]} 11.
Rfe1 {[%clk 0:02:14.3]} 11... O-O {[%clk 0:03:02.1]} 12. Ne5 {[%clk 0:02:13.6]}
12... Rac8 {[%clk 0:03:01.1]} 13. c3 {[%clk 0:02:12]} 13... Nxe5 {[%clk
0:02:59.4]} 14. Bxe5 {[%clk 0:02:02.3]} 14... Nd7 {[%clk 0:02:59.7]} 15. Bf4
{[%clk 0:01:59]} 15... a5 {[%clk 0:02:57.2]} 16. Rab1 {[%clk 0:01:41.7]} 16...
a4 {[%clk 0:02:54.3]} 17. Nd2 {[%clk 0:01:41.9]} 17... Qa5 {[%clk 0:02:37.7]}
18. a3 {[%clk 0:01:41.2]} 18... Nb6 {[%clk 0:02:34.2]} 19. Re3 {[%clk 0:01:41]}
19... Qa6 {[%clk 0:02:26.7]} 20. Qc2 {[%clk 0:01:31.9]} 20... Bf6 {[%clk
0:02:20.4]} 21. Rh3 {[%clk 0:01:21.7]} 21... g6 {[%clk 0:02:19.2]} 22. Qd1
{[%clk 0:01:21.5]} 22... Nc4 {[%clk 0:02:12.8]} 23. Nxc4 {[%clk 0:01:21]} 23...
Qxc4 {[%clk 0:02:13.7]} 24. Qd2 {[%clk 0:01:11.5]} 24... Rfe8 {[%clk 0:02:11.7]}
25. Re1 {[%clk 0:01:11.4]} 25... Re7 {[%clk 0:01:52.8]} 26. Be5 {[%clk
0:01:10.9]} 26... Bxe5 {[%clk 0:01:49.5]} 27. dxe5 {[%clk 0:01:09.5]} 27... h5
{[%clk 0:01:24]} 28. Qg5 {[%clk 0:01:06.6]} 28... Kf8 {[%clk 0:01:15.4]} 29. Rf3
{[%clk 0:00:51.6]} 29... Ke8 {[%clk 0:01:12.6]} 30. Qf6 {[%clk 0:00:40.9]} 30...
Qb3 {[%clk 0:00:49.9]} 31. g4 {[%clk 0:00:14.5]} 31... hxg4 {[%clk 0:00:46.7]}
32. Rf4 {[%clk 0:00:14.7]} 32... Rc4 {[%clk 0:00:37.6]} 33. Rxc4 {[%clk
0:00:09.4]} 33... Qxc4 {[%clk 0:00:38.5]} 34. Qh8+ {[%clk 0:00:07.7]} 34... Kd7
{[%clk 0:00:38.4]} 35. Qb8 {[%clk 0:00:08.3]} 35... Qc7 {[%clk 0:00:30]} 36. Qa7
{[%clk 0:00:08.6]} 36... Qc6 {[%clk 0:00:29.4]} 37. Rd1 {[%clk 0:00:08.9]} 37...
Qa6 {[%clk 0:00:14.7]} 38. Qd4 {[%clk 0:00:08.1]} 38... b5 {[%clk 0:00:09.7]}
39. Qxg4 {[%clk 0:00:07.7]} 39... Qb6 {[%clk 0:00:08.6]} 40. Qd4 {[%clk
0:00:07.8]} 40... Qxd4 {[%clk 0:00:08.5]} 41. Rxd4 {[%clk 0:00:08.7]} 41... Kc6
{[%clk 0:00:08.7]} 42. Kg2 {[%clk 0:00:07.4]} 42... Re8 {[%clk 0:00:09.2]} 43.
Rh4 {[%clk 0:00:07.6]} 43... Kd7 {[%clk 0:00:07.6]} 44. Kf3 {[%clk 0:00:07.7]}
44... Rc8 {[%clk 0:00:07.6]} 45. Rh7 {[%clk 0:00:07.3]} 45... Ke7 {[%clk
0:00:07.6]} 46. Rh4 {[%clk 0:00:07.4]} 46... Rc5 {[%clk 0:00:05.4]} 47. Ke3
{[%clk 0:00:07.3]} 47... Kd7 {[%clk 0:00:03.6]} 48. Rb4 {[%clk 0:00:07.8]} 48...
Kc6 {[%clk 0:00:02.7]} 49. Rf4 {[%clk 0:00:07.5]} 49... Kb6 {[%clk 0:00:03.1]}
50. Rxf7 {[%clk 0:00:07.7]} 50... Rc4 {[%clk 0:00:03.6]} 51. Rf6 {[%clk
0:00:07.9]} 51... Re4+ {[%clk 0:00:04.2]} 52. Kd3 {[%clk 0:00:08]} 52... Rxe5
{[%clk 0:00:05.1]} 53. f4 {[%clk 0:00:06.9]} 53... Re4 {[%clk 0:00:04.1]} 54.
Rxg6 {[%clk 0:00:07.3]} 54... Kc5 {[%clk 0:00:04]} 55. Rf6 {[%clk 0:00:07.2]}
55... Re1 {[%clk 0:00:04]} 56. h4 {[%clk 0:00:05.9]} 56... Rh1 {[%clk
0:00:03.7]} 57. Rxe6 {[%clk 0:00:06.1]} 57... Rxh4 {[%clk 0:00:03.9]} 58. Re8
{[%clk 0:00:06.1]} 58... Rxf4 {[%clk 0:00:03.3]} 59. Rc8+ {[%clk 0:00:06.6]}
59... Kb6 {[%clk 0:00:03.5]} 60. Rb8+ {[%clk 0:00:06.8]} 60... Kc6 {[%clk
0:00:03.9]} 61. Re8 {[%clk 0:00:07.4]} 61... Rf2 {[%clk 0:00:03.6]} 62. Re2
{[%clk 0:00:07.6]} 62... Rf3+ {[%clk 0:00:04]} 63. Kd2 {[%clk 0:00:07.8]} 63...
Kc5 {[%clk 0:00:03.9]} 64. Re7 {[%clk 0:00:07.7]} 64... Kc4 {[%clk 0:00:03.9]}
65. Rd7 {[%clk 0:00:07]} 65... Rf5 {[%clk 0:00:02.8]} 66. Kc2 {[%clk 0:00:06.8]}
66... Rf2+ {[%clk 0:00:02.6]} 67. Kc1 {[%clk 0:00:07.3]} 67... Rf1+ {[%clk
0:00:03.1]} 68. Kc2 {[%clk 0:00:06.8]} 68... Rf2+ {[%clk 0:00:03.7]} 69. Kc1
{[%clk 0:00:07.2]} 69... Kb3 {[%clk 0:00:04.6]} 70. Rxd5 {[%clk 0:00:07]} 70...
Rc2+ {[%clk 0:00:04.6]} 71. Kd1 {[%clk 0:00:06.9]} 71... Rxb2 {[%clk 0:00:04.2]}
72. Rxb5+ {[%clk 0:00:07.1]} 72... Kxa3 {[%clk 0:00:04.8]} 73. Rxb2 {[%clk
0:00:07.4]} 73... Kxb2 {[%clk 0:00:05.7]} 74. c4 {[%clk 0:00:06.6]} 74... a3
{[%clk 0:00:06.6]} 75. Kd2 {[%clk 0:00:06.6]} 75... a2 {[%clk 0:00:07.5]} 76. c5
{[%clk 0:00:07]} 76... a1=Q {[%clk 0:00:08.4]} 77. c6 {[%clk 0:00:07.9]} 77...
Qa6 {[%clk 0:00:08.4]} 78. c7 {[%clk 0:00:08]} 78... Qc6 {[%clk 0:00:08.6]} 79.
c8=Q {[%clk 0:00:08.1]} 79... Qxc8 {[%clk 0:00:09.5]} 0-1

[Event "*** Titled Tuesday Blitz"]
[Site "Chess.com"]
[Date "2021.03.30"]
[Round "3"]
[White "andriipalchuk"]
[Black "Zkid"]
[Result "1/2-1/2"]
[WhiteElo "2619"]
[BlackElo "2846"]
[TimeControl "180+1"]
[EndTime "10:30:15 PDT"]
[Termination "Game drawn - insufficient material"]

1. d4 {[%clk 0:03:00.9]} 1... d5 {[%clk 0:02:58.4]} 2. c4 {[%clk 0:03:01]} 2...
dxc4 {[%clk 0:02:57.8]} 3. e4 {[%clk 0:03:00.1]} 3... Nf6 {[%clk 0:02:57.8]} 4.
e5 {[%clk 0:02:57]} 4... Nd5 {[%clk 0:02:57.6]} 5. Bxc4 {[%clk 0:02:57.4]} 5...
Nc6 {[%clk 0:02:57.9]} 6. Ne2 {[%clk 0:02:46.5]} 6... Bf5 {[%clk 0:02:57.3]} 7.
Nbc3 {[%clk 0:02:42.9]} 7... Nb6 {[%clk 0:02:56.2]} 8. Bb3 {[%clk 0:02:42.7]}
8... e6 {[%clk 0:02:55.4]} 9. O-O {[%clk 0:02:39.4]} 9... Be7 {[%clk 0:02:49.3]}
10. Be3 {[%clk 0:02:37.5]} 10... Qd7 {[%clk 0:02:46.7]} 11. Qc1 {[%clk
0:02:18.4]} 11... Nb4 {[%clk 0:02:33.8]} 12. Rd1 {[%clk 0:02:14.7]} 12... O-O
{[%clk 0:02:28.6]} 13. Ng3 {[%clk 0:01:53.9]} 13... Bg6 {[%clk 0:02:27.1]} 14.
a3 {[%clk 0:01:21.4]} 14... N4d5 {[%clk 0:02:26.2]} 15. Bg5 {[%clk 0:01:19.7]}
15... Bxg5 {[%clk 0:02:11.5]} 16. Qxg5 {[%clk 0:01:19.2]} 16... a5 {[%clk
0:02:04.5]} 17. h4 {[%clk 0:01:17.9]} 17... h6 {[%clk 0:01:56.6]} 18. Qg4 {[%clk
0:01:16.5]} 18... a4 {[%clk 0:01:46.6]} 19. Bxd5 {[%clk 0:01:16.1]} 19... Nxd5
{[%clk 0:01:45]} 20. Rac1 {[%clk 0:01:16.7]} 20... Ne7 {[%clk 0:01:23.7]} 21. h5
{[%clk 0:01:13.3]} 21... Bh7 {[%clk 0:01:23.4]} 22. d5 {[%clk 0:01:12.5]} 22...
Nf5 {[%clk 0:01:13.1]} 23. Nge4 {[%clk 0:00:56.4]} 23... Kh8 {[%clk 0:01:12]}
24. Nc5 {[%clk 0:00:46.1]} 24... Qc8 {[%clk 0:01:11.7]} 25. N5xa4 {[%clk
0:00:34.7]} 25... b6 {[%clk 0:01:02]} 26. Qc4 {[%clk 0:00:24.5]} 26... Ra5
{[%clk 0:00:36.3]} 27. dxe6 {[%clk 0:00:23.7]} 27... fxe6 {[%clk 0:00:29.7]} 28.
Nb5 {[%clk 0:00:22.1]} 28... Qa6 {[%clk 0:00:24.7]} 29. Nac3 {[%clk 0:00:20.5]}
29... c5 {[%clk 0:00:20]} 30. Nd6 {[%clk 0:00:17.3]} 30... Nd4 {[%clk
0:00:13.6]} 31. Qxa6 {[%clk 0:00:16.3]} 31... Rxa6 {[%clk 0:00:14.5]} 32. Re1
{[%clk 0:00:09.6]} 32... Nb3 {[%clk 0:00:13.9]} 33. Rcd1 {[%clk 0:00:10.1]}
33... Bc2 {[%clk 0:00:14.5]} 34. g3 {[%clk 0:00:04.9]} 34... Bxd1 {[%clk
0:00:13]} 35. Rxd1 {[%clk 0:00:05.8]} 35... Nd4 {[%clk 0:00:13.7]} 36. f4 {[%clk
0:00:05.7]} 36... Raa8 {[%clk 0:00:13.5]} 37. Kg2 {[%clk 0:00:06]} 37... Kg8
{[%clk 0:00:13.8]} 38. Nde4 {[%clk 0:00:05.6]} 38... Rfd8 {[%clk 0:00:13.7]} 39.
Nd6 {[%clk 0:00:05.8]} 39... Rd7 {[%clk 0:00:13.8]} 40. Rd2 {[%clk 0:00:06]}
40... Kf8 {[%clk 0:00:13.3]} 41. Nce4 {[%clk 0:00:06.5]} 41... Ra4 {[%clk
0:00:10.8]} 42. g4 {[%clk 0:00:06.5]} 42... Nb5 {[%clk 0:00:09.3]} 43. Nxb5
{[%clk 0:00:03.6]} 43... Rxd2+ {[%clk 0:00:08.2]} 44. Nxd2 {[%clk 0:00:04.5]}
44... Rxf4 {[%clk 0:00:08.6]} 45. Kg3 {[%clk 0:00:04.1]} 45... Rf7 {[%clk
0:00:07.4]} 46. b4 {[%clk 0:00:03.9]} 46... cxb4 {[%clk 0:00:07.1]} 47. axb4
{[%clk 0:00:04.8]} 47... Rd7 {[%clk 0:00:07.2]} 48. Nd6 {[%clk 0:00:05.4]} 48...
Ra7 {[%clk 0:00:06.5]} 49. N2c4 {[%clk 0:00:06.1]} 49... b5 {[%clk 0:00:06.9]}
50. Nxb5 {[%clk 0:00:06.1]} 50... Ra2 {[%clk 0:00:06.6]} 51. Nbd6 {[%clk
0:00:07]} 51... Ke7 {[%clk 0:00:03.6]} 52. b5 {[%clk 0:00:06.8]} 52... Kd7
{[%clk 0:00:04]} 53. b6 {[%clk 0:00:07.3]} 53... Ra1 {[%clk 0:00:03.1]} 54. b7
{[%clk 0:00:08.2]} 54... Rb1 {[%clk 0:00:03.6]} 55. Kf4 {[%clk 0:00:07.1]} 55...
Rb3 {[%clk 0:00:03.9]} 56. g5 {[%clk 0:00:07.4]} 56... Rb1 {[%clk 0:00:03.4]}
57. g6 {[%clk 0:00:07.2]} 57... Rb4 {[%clk 0:00:02.9]} 58. Ke4 {[%clk
0:00:07.4]} 58... Rb1 {[%clk 0:00:02.2]} 59. Kd3 {[%clk 0:00:07.8]} 59... Rb3+
{[%clk 0:00:02.7]} 60. Kd2 {[%clk 0:00:08]} 60... Rb4 {[%clk 0:00:03.6]} 61. Kc3
{[%clk 0:00:08.4]} 61... Rb1 {[%clk 0:00:04.3]} 62. Nb2 {[%clk 0:00:08.2]} 62...
Kc7 {[%clk 0:00:04.1]} 63. Ne8+ {[%clk 0:00:08.8]} 63... Kxb7 {[%clk 0:00:05]}
64. Nxg7 {[%clk 0:00:09.7]} 64... Rh1 {[%clk 0:00:05]} 65. Nxe6 {[%clk
0:00:09.9]} 65... Rxh5 {[%clk 0:00:05.6]} 66. g7 {[%clk 0:00:10.4]} 66... Rh3+
{[%clk 0:00:06.2]} 67. Kd4 {[%clk 0:00:10.3]} 67... Rg3 {[%clk 0:00:07.1]} 68.
Nc4 {[%clk 0:00:09.8]} 68... h5 {[%clk 0:00:07.5]} 69. Ne3 {[%clk 0:00:08.7]}
69... Kc6 {[%clk 0:00:07.2]} 70. Nf5 {[%clk 0:00:08.8]} 70... Rg4+ {[%clk
0:00:07.8]} 71. Ke3 {[%clk 0:00:08.7]} 71... Kd7 {[%clk 0:00:08.4]} 72. Nfd4
{[%clk 0:00:05.9]} 72... h4 {[%clk 0:00:08.1]} 73. Kf3 {[%clk 0:00:06.2]} 73...
Rg3+ {[%clk 0:00:08.6]} 74. Kf2 {[%clk 0:00:06.4]} 74... Rg4 {[%clk 0:00:07.6]}
75. Nc5+ {[%clk 0:00:05.5]} 75... Ke8 {[%clk 0:00:07.2]} 76. Nf3 {[%clk
0:00:03]} 76... h3 {[%clk 0:00:06.7]} 77. Ne4 {[%clk 0:00:01.7]} 77... Rxg7
{[%clk 0:00:06.2]} 78. Nf6+ {[%clk 0:00:02.6]} 78... Ke7 {[%clk 0:00:06.1]} 79.
Nd5+ {[%clk 0:00:02.6]} 79... Kf8 {[%clk 0:00:06.4]} 80. Nf4 {[%clk 0:00:03.5]}
80... Rh7 {[%clk 0:00:05.7]} 81. Kg3 {[%clk 0:00:03.5]} 81... Rg7+ {[%clk
0:00:04.9]} 82. Kxh3 {[%clk 0:00:03.8]} 82... Ra7 {[%clk 0:00:05.5]} 83. Kg3
{[%clk 0:00:04.7]} 83... Ra5 {[%clk 0:00:05.3]} 84. Kg4 {[%clk 0:00:05.6]} 84...
Rxe5 {[%clk 0:00:04.4]} 85. Nxe5 {[%clk 0:00:06.5]} 1/2-1/2

[Event "*** Titled Tuesday Blitz"]
[Site "Chess.com"]
[Date "2021.03.30"]
[Round "3"]
[White "XDPS"]
[Black "bilelou"]
[Result "0-1"]
[WhiteElo "2786"]
[BlackElo "2571"]
[TimeControl "180+1"]
[EndTime "10:30:17 PDT"]
[Termination "bilelou won on time"]

1. e4 {[%clk 0:03:00.9]} 1... c5 {[%clk 0:02:58.3]} 2. Nf3 {[%clk 0:03:00.7]}
2... d6 {[%clk 0:02:59]} 3. d4 {[%clk 0:03:01.1]} 3... cxd4 {[%clk 0:02:59.9]}
4. Nxd4 {[%clk 0:03:02]} 4... Nf6 {[%clk 0:03:00]} 5. Nc3 {[%clk 0:03:02.5]}
5... a6 {[%clk 0:02:59.8]} 6. Be2 {[%clk 0:03:03.1]} 6... e5 {[%clk 0:02:59.6]}
7. Nf3 {[%clk 0:03:03.5]} 7... h6 {[%clk 0:02:59.1]} 8. Nd2 {[%clk 0:03:03]}
8... Be6 {[%clk 0:02:57.3]} 9. Nc4 {[%clk 0:03:00.9]} 9... Qc7 {[%clk
0:02:52.8]} 10. Ne3 {[%clk 0:03:00.8]} 10... Nbd7 {[%clk 0:02:51.6]} 11. O-O
{[%clk 0:02:59.5]} 11... Rc8 {[%clk 0:02:50.3]} 12. Ncd5 {[%clk 0:02:48.7]}
12... Bxd5 {[%clk 0:02:48.9]} 13. exd5 {[%clk 0:02:49.6]} 13... g6 {[%clk
0:02:48.7]} 14. c4 {[%clk 0:02:48]} 14... Bg7 {[%clk 0:02:47.9]} 15. b4 {[%clk
0:02:47.9]} 15... O-O {[%clk 0:02:34.4]} 16. a4 {[%clk 0:02:47.8]} 16... a5
{[%clk 0:02:33.7]} 17. bxa5 {[%clk 0:02:44.8]} 17... Ne4 {[%clk 0:02:31.6]} 18.
Qc2 {[%clk 0:02:25.1]} 18... Nec5 {[%clk 0:02:22.5]} 19. Bd2 {[%clk 0:02:19.5]}
19... f5 {[%clk 0:02:12.7]} 20. Rab1 {[%clk 0:02:19.3]} 20... f4 {[%clk
0:02:08.4]} 21. Nd1 {[%clk 0:02:18.7]} 21... e4 {[%clk 0:02:08.4]} 22. f3 {[%clk
0:02:17.2]} 22... e3 {[%clk 0:02:03.7]} 23. Be1 {[%clk 0:02:17.1]} 23... Ne5
{[%clk 0:02:00.5]} 24. Rb5 {[%clk 0:02:13.8]} 24... g5 {[%clk 0:01:56.1]} 25.
Bb4 {[%clk 0:01:58.3]} 25... Na6 {[%clk 0:01:37.1]} 26. Ba3 {[%clk 0:01:49.3]}
26... Rfd8 {[%clk 0:01:36.5]} 27. Nb2 {[%clk 0:01:43.9]} 27... Rd7 {[%clk
0:01:24.3]} 28. Rb1 {[%clk 0:01:40.9]} 28... Bf8 {[%clk 0:01:12.2]} 29. Qf5
{[%clk 0:01:05.4]} 29... Rf7 {[%clk 0:00:58.1]} 30. Qe6 {[%clk 0:01:05.1]} 30...
Qd7 {[%clk 0:00:57.3]} 31. Rb6 {[%clk 0:00:47.5]} 31... Nc5 {[%clk 0:00:52.1]}
32. Bxc5 {[%clk 0:00:42.7]} 32... Rxc5 {[%clk 0:00:53]} 33. a6 {[%clk
0:00:36.4]} 33... bxa6 {[%clk 0:00:47.2]} 34. Rb8 {[%clk 0:00:20.8]} 34... Qxe6
{[%clk 0:00:33.3]} 35. dxe6 {[%clk 0:00:21.1]} 35... Re7 {[%clk 0:00:31.5]} 36.
Nd3 {[%clk 0:00:21.5]} 36... Nxd3 {[%clk 0:00:20.7]} 37. Bxd3 {[%clk 0:00:22.4]}
37... Rxe6 {[%clk 0:00:20.4]} 38. Kf1 {[%clk 0:00:23.1]} 38... Kg7 {[%clk
0:00:15.7]} 39. R1b7+ {[%clk 0:00:21.4]} 39... Re7 {[%clk 0:00:14.6]} 40. Rb6
{[%clk 0:00:21.5]} 40... a5 {[%clk 0:00:09.6]} 41. Ke2 {[%clk 0:00:21.2]} 41...
Rec7 {[%clk 0:00:07.9]} 42. Rd8 {[%clk 0:00:18.1]} 42... Be7 {[%clk 0:00:08]}
43. Re8 {[%clk 0:00:18.4]} 43... Kf7 {[%clk 0:00:07.4]} 44. Rh8 {[%clk
0:00:18.6]} 44... Kg7 {[%clk 0:00:07]} 45. Rh7+ {[%clk 0:00:18.6]} 45... Kf6
{[%clk 0:00:07.6]} 46. Rxh6+ {[%clk 0:00:18.8]} 46... Ke5 {[%clk 0:00:08.2]} 47.
h4 {[%clk 0:00:16.5]} 47... gxh4 {[%clk 0:00:08]} 48. Rb8 {[%clk 0:00:15.2]}
48... Kd4 {[%clk 0:00:08.1]} 49. Re6 {[%clk 0:00:13.9]} 49... Kc3 {[%clk
0:00:08.1]} 50. Re4 {[%clk 0:00:11.3]} 50... Rg5 {[%clk 0:00:07.9]} 51. Bb1
{[%clk 0:00:04.9]} 51... Rxg2+ {[%clk 0:00:06.8]} 52. Kf1 {[%clk 0:00:05.5]}
52... Rf2+ {[%clk 0:00:06.7]} 53. Ke1 {[%clk 0:00:06]} 53... h3 {[%clk
0:00:06.7]} 54. Rh8 {[%clk 0:00:04.3]} 54... h2 {[%clk 0:00:06.5]} 55. Rxf4
{[%clk 0:00:03.8]} 55... Rb2 {[%clk 0:00:06.8]} 56. Be4 {[%clk 0:00:03.3]} 56...
Ra2 {[%clk 0:00:03.9]} 57. Bd5 {[%clk 0:00:02.9]} 57... h1=Q+ {[%clk 0:00:03.7]}
58. Rxh1 {[%clk 0:00:02.6]} 58... Ra1+ {[%clk 0:00:04.6]} 59. Ke2 {[%clk
0:00:03.5]} 59... Rxh1 {[%clk 0:00:05.2]} 60. Re4 {[%clk 0:00:04.1]} 60... Rh2+
{[%clk 0:00:05.2]} 61. Kxe3 {[%clk 0:00:04.5]} 61... Bf6 {[%clk 0:00:05.8]} 62.
Rg4 {[%clk 0:00:04.3]} 62... Re7+ {[%clk 0:00:06.2]} 63. Kf4 {[%clk 0:00:04.6]}
63... Be5+ {[%clk 0:00:06.3]} 64. Kf5 {[%clk 0:00:05.2]} 64... Rh5+ {[%clk
0:00:06.8]} 65. Kg6 {[%clk 0:00:05.7]} 65... Rhh7 {[%clk 0:00:07.2]} 66. Kf5
{[%clk 0:00:05.9]} 66... Rhg7 {[%clk 0:00:06.8]} 67. Rh4 {[%clk 0:00:05.2]}
67... Bd4 {[%clk 0:00:07.2]} 68. f4 {[%clk 0:00:05.2]} 68... Bc5 {[%clk
0:00:07.8]} 69. Rh3+ {[%clk 0:00:05.5]} 69... Re3 {[%clk 0:00:07.2]} 70. Rh8
{[%clk 0:00:05]} 70... Rg1 {[%clk 0:00:06.9]} 71. Rb8 {[%clk 0:00:05.3]} 71...
Rf1 {[%clk 0:00:07.1]} 72. Kg5 {[%clk 0:00:05.3]} 72... Rg3+ {[%clk 0:00:06.9]}
73. Kh4 {[%clk 0:00:05.2]} 73... Rgg1 {[%clk 0:00:07.4]} 74. Rf8 {[%clk
0:00:04.6]} 74... Be3 {[%clk 0:00:07.5]} 75. f5 {[%clk 0:00:04.1]} 75... Rf4+
{[%clk 0:00:07.9]} 76. Kh5 {[%clk 0:00:04.4]} 76... Rf2 {[%clk 0:00:06.3]} 0-1